[Event "*** Titled Tuesday Blitz"]
[Site "Chess.com"]
[Date "2019.06.04"]
[Round "8"]
[White "rasmussvane"]
[Black "Polish_fighter3000"]
[Result "0-1"]
[WhiteElo "2890"]
[BlackElo "3015"]
[TimeControl "180+2"]
[EndTime "14:48:40 PDT"]
[Termination "Polish_fighter3000 won by resignation"]

1. Nf3 {[%clk 0:03:01.9]} 1... Nf6 {[%clk 0:03:01.3]} 2. c4 {[%clk 0:03:02.5]}
2... b6 {[%clk 0:03:01.7]} 3. g3 {[%clk 0:03:03.7]} 3... c5 {[%clk 0:02:57.5]}
4. Bg2 {[%clk 0:03:04.8]} 4... Bb7 {[%clk 0:02:59.1]} 5. O-O {[%clk 0:03:06.4]}
5... g6 {[%clk 0:03:00.5]} 6. Nc3 {[%clk 0:03:07.7]} 6... Bg7 {[%clk 0:03:01.7]}
7. d4 {[%clk 0:03:09.4]} 7... cxd4 {[%clk 0:03:03]} 8. Qxd4 {[%clk 0:03:11.2]}
8... O-O {[%clk 0:03:02.9]} 9. Qh4 {[%clk 0:03:11.7]} 9... d6 {[%clk 0:03:02.5]}
10. Bh6 {[%clk 0:03:12.6]} 10... Nbd7 {[%clk 0:03:02.6]} 11. Rad1 {[%clk
0:03:12.6]} 11... Rc8 {[%clk 0:03:01.5]} 12. b3 {[%clk 0:03:09.6]} 12... Rc5
{[%clk 0:02:59.8]} 13. Bxg7 {[%clk 0:02:56.1]} 13... Kxg7 {[%clk 0:03:01.7]} 14.
b4 {[%clk 0:02:17.9]} 14... Rc7 {[%clk 0:02:46.7]} 15. Nb5 {[%clk 0:02:16.1]}
15... Rc8 {[%clk 0:02:48.1]} 16. Nxa7 {[%clk 0:01:54.2]} 16... Ra8 {[%clk
0:02:47.6]} 17. Nb5 {[%clk 0:01:55.8]} 17... Rxa2 {[%clk 0:02:47.2]} 18. Nc3
{[%clk 0:01:55.9]} 18... Rb2 {[%clk 0:02:37]} 19. Rb1 {[%clk 0:01:56.3]} 19...
Rxb1 {[%clk 0:02:31.1]} 20. Rxb1 {[%clk 0:01:58.2]} 20... Qa8 {[%clk 0:02:32.3]}
21. Qd4 {[%clk 0:01:52.5]} 21... Rc8 {[%clk 0:02:29.9]} 22. Rd1 {[%clk 0:01:51]}
22... Ne5 {[%clk 0:02:23.4]} 23. Qxb6 {[%clk 0:00:37.6]} 23... Nxc4 {[%clk
0:02:10]} 24. Qd4 {[%clk 0:00:21.1]} 24... e5 {[%clk 0:02:05.3]} 25. Qh4 {[%clk
0:00:22.1]} 25... h6 {[%clk 0:02:06.7]} 26. Nb5 {[%clk 0:00:18.6]} 26... Qa4
{[%clk 0:01:56]} 27. Nc3 {[%clk 0:00:16.5]} 27... Qxb4 {[%clk 0:01:56.8]} 28.
Rb1 {[%clk 0:00:10.1]} 28... Qxc3 {[%clk 0:01:56.5]} 29. Rxb7 {[%clk 0:00:11.3]}
29... g5 {[%clk 0:01:53.4]} 30. Rxf7+ {[%clk 0:00:11.8]} 30... Kxf7 {[%clk
0:01:51.8]} 31. Qxh6 {[%clk 0:00:13.4]} 31... Qc1+ {[%clk 0:01:50.4]} 32. Bf1
{[%clk 0:00:14.7]} 32... Rg8 {[%clk 0:01:48.9]} 33. h4 {[%clk 0:00:14.2]} 33...
Nd2 {[%clk 0:01:48.3]} 34. Nxd2 {[%clk 0:00:12.4]} 34... Qxd2 {[%clk 0:01:50.2]}
35. e3 {[%clk 0:00:12.3]} 35... Qxf2+ {[%clk 0:01:50.2]} 0-1

[Event "*** Titled Tuesday Blitz"]
[Site "Chess.com"]
[Date "2019.06.04"]
[Round "8"]
[White "Bryakin_Mikhail"]
[Black "Karacsonyi_Gellert"]
[Result "1-0"]
[WhiteElo "2727"]
[BlackElo "2522"]
[TimeControl "180+2"]
[EndTime "14:48:44 PDT"]
[Termination "Bryakin_Mikhail won by resignation"]

1. d4 {[%clk 0:03:00]} 1... Nf6 {[%clk 0:03:00.6]} 2. c4 {[%clk 0:02:59.5]} 2...
e6 {[%clk 0:03:01.4]} 3. g3 {[%clk 0:03:01]} 3... d5 {[%clk 0:03:01.4]} 4. Bg2
{[%clk 0:03:02.5]} 4... dxc4 {[%clk 0:03:02.7]} 5. Nf3 {[%clk 0:03:03.7]} 5...
Bd7 {[%clk 0:03:04.1]} 6. Ne5 {[%clk 0:03:05]} 6... Nc6 {[%clk 0:03:05.5]} 7.
Nxc4 {[%clk 0:03:00.7]} 7... Bb4+ {[%clk 0:02:57]} 8. Bd2 {[%clk 0:02:57.6]}
8... Bxd2+ {[%clk 0:02:54.4]} 9. Qxd2 {[%clk 0:02:58.1]} 9... O-O {[%clk
0:02:55.7]} 10. O-O {[%clk 0:02:57.7]} 10... Rb8 {[%clk 0:02:54.6]} 11. Nc3
{[%clk 0:02:55.7]} 11... Ne7 {[%clk 0:02:55.4]} 12. Ne5 {[%clk 0:02:55]} 12...
Bc6 {[%clk 0:02:48.8]} 13. Nxc6 {[%clk 0:02:55.4]} 13... Nxc6 {[%clk 0:02:49.7]}
14. e3 {[%clk 0:02:50.4]} 14... Qd7 {[%clk 0:02:36.8]} 15. Rfd1 {[%clk
0:02:47.8]} 15... Rfd8 {[%clk 0:02:36.8]} 16. a3 {[%clk 0:02:47]} 16... e5
{[%clk 0:02:24]} 17. d5 {[%clk 0:02:43]} 17... Ne7 {[%clk 0:02:25.4]} 18. Qe2
{[%clk 0:02:33.6]} 18... a6 {[%clk 0:02:19.3]} 19. Qc4 {[%clk 0:02:34.2]} 19...
Nc8 {[%clk 0:02:15.9]} 20. Rac1 {[%clk 0:02:31.2]} 20... Nd6 {[%clk 0:02:16.8]}
21. Qb4 {[%clk 0:02:32.7]} 21... h5 {[%clk 0:01:44.6]} 22. h3 {[%clk 0:02:29]}
22... Rdc8 {[%clk 0:01:36.2]} 23. Na4 {[%clk 0:02:25.2]} 23... a5 {[%clk
0:01:34.2]} 24. Qb3 {[%clk 0:02:25.3]} 24... b6 {[%clk 0:01:28.8]} 25. Rc6
{[%clk 0:02:25.5]} 25... e4 {[%clk 0:01:23.3]} 26. Nc3 {[%clk 0:02:25.3]} 26...
h4 {[%clk 0:01:21.8]} 27. g4 {[%clk 0:02:25.7]} 27... b5 {[%clk 0:01:13.6]} 28.
Ne2 {[%clk 0:02:16.8]} 28... g5 {[%clk 0:00:50.6]} 29. Nd4 {[%clk 0:02:14.1]}
29... Kg7 {[%clk 0:00:50.7]} 30. Rdc1 {[%clk 0:02:12.4]} 30... Nxg4 {[%clk
0:00:49.5]} 31. hxg4 {[%clk 0:02:11.9]} 31... Qxg4 {[%clk 0:00:50.1]} 32. Kh2
{[%clk 0:02:13.3]} 32... h3 {[%clk 0:00:51.2]} 33. Bh1 {[%clk 0:02:08.2]} 33...
Nc4 {[%clk 0:00:34.6]} 34. Qd1 {[%clk 0:01:57.1]} 34... Qh4 {[%clk 0:00:34.3]}
35. Qg1 {[%clk 0:01:57.8]} 35... Ne5 {[%clk 0:00:30.6]} 36. Nf5+ {[%clk
0:01:58.2]} 36... Kh7 {[%clk 0:00:15.4]} 37. Nxh4 {[%clk 0:02:00.1]} 37... gxh4
{[%clk 0:00:16.3]} 38. Qg5 {[%clk 0:01:55.5]} 1-0

[Event "*** Titled Tuesday Blitz"]
[Site "Chess.com"]
[Date "2019.06.04"]
[Round "8"]
[White "Jabberwockiez"]
[Black "NicoChasin"]
[Result "1-0"]
[WhiteElo "2263"]
[BlackElo "2469"]
[TimeControl "180+2"]
[EndTime "14:48:51 PDT"]
[Termination "Jabberwockiez won by resignation"]

1. e4 {[%clk 0:03:01.9]} 1... c5 {[%clk 0:02:59.9]} 2. Nc3 {[%clk 0:03:02.6]}
2... Nc6 {[%clk 0:03:00]} 3. Nf3 {[%clk 0:03:03.1]} 3... g6 {[%clk 0:03:00.6]}
4. d4 {[%clk 0:03:04]} 4... cxd4 {[%clk 0:03:00.9]} 5. Nxd4 {[%clk 0:03:05.9]}
5... Bg7 {[%clk 0:03:01.9]} 6. Nb3 {[%clk 0:03:07.2]} 6... d6 {[%clk 0:03:02.4]}
7. Be2 {[%clk 0:03:08.4]} 7... Nf6 {[%clk 0:03:00.8]} 8. O-O {[%clk 0:03:09.6]}
8... O-O {[%clk 0:03:02]} 9. Bg5 {[%clk 0:03:10.6]} 9... Be6 {[%clk 0:03:02.2]}
10. Re1 {[%clk 0:03:11.9]} 10... Nd7 {[%clk 0:03:02.6]} 11. Rb1 {[%clk
0:03:01.6]} 11... a6 {[%clk 0:03:03.3]} 12. Nd5 {[%clk 0:03:02.7]} 12... h6
{[%clk 0:03:02.8]} 13. Bh4 {[%clk 0:03:01.5]} 13... b5 {[%clk 0:03:01.3]} 14. f4
{[%clk 0:02:48.5]} 14... Nb6 {[%clk 0:02:43.1]} 15. Bg4 {[%clk 0:02:11.2]} 15...
Bxg4 {[%clk 0:02:41.4]} 16. Qxg4 {[%clk 0:02:11.4]} 16... Ra7 {[%clk 0:02:24.6]}
17. Bf2 {[%clk 0:01:57.1]} 17... f5 {[%clk 0:02:07.7]} 18. Qxg6 {[%clk
0:01:47.9]} 18... Nc8 {[%clk 0:01:16.6]} 19. Bxa7 {[%clk 0:01:40.3]} 19... N8xa7
{[%clk 0:01:16]} 20. exf5 {[%clk 0:01:37.8]} 20... Qe8 {[%clk 0:01:13.9]} 21.
Qe6+ {[%clk 0:01:26.3]} 21... Qf7 {[%clk 0:01:14.5]} 22. Nxe7+ {[%clk
0:01:18.5]} 22... Nxe7 {[%clk 0:01:13.1]} 23. Qxe7 {[%clk 0:01:18.6]} 23... Nc8
{[%clk 0:01:10]} 24. Qxf7+ {[%clk 0:01:16.3]} 24... Kxf7 {[%clk 0:01:11.9]} 25.
c3 {[%clk 0:01:09.4]} 25... Nb6 {[%clk 0:01:11]} 26. Nd4 {[%clk 0:01:09.9]}
26... Nc4 {[%clk 0:01:10.6]} 27. Ne6 {[%clk 0:01:08]} 27... Rg8 {[%clk 0:01:11]}
28. Nxg7 {[%clk 0:01:04]} 28... Rxg7 {[%clk 0:01:12.2]} 29. Kf2 {[%clk
0:00:59.1]} 29... Kf6 {[%clk 0:01:11.5]} 30. b3 {[%clk 0:00:54]} 30... Na3
{[%clk 0:01:11.4]} 31. Rbd1 {[%clk 0:00:51.2]} 31... Kxf5 {[%clk 0:01:12.1]} 32.
Rxd6 {[%clk 0:00:50.3]} 32... Kxf4 {[%clk 0:01:13.6]} 33. g3+ {[%clk 0:00:44.6]}
33... Kg4 {[%clk 0:01:14.2]} 34. Re5 {[%clk 0:00:42]} 34... Nb1 {[%clk 0:01:10]}
35. Rd4+ {[%clk 0:00:40.2]} 1-0

[Event "*** Titled Tuesday Blitz"]
[Site "Chess.com"]
[Date "2019.06.04"]
[Round "8"]
[White "ChessWarrior7197"]
[Black "Oleg_Papayan"]
[Result "1-0"]
[WhiteElo "2831"]
[BlackElo "2555"]
[TimeControl "180+2"]
[EndTime "14:48:51 PDT"]
[Termination "ChessWarrior7197 won by resignation"]

1. Nf3 {[%clk 0:03:01.9]} 1... c5 {[%clk 0:02:58.3]} 2. e3 {[%clk 0:03:02.7]}
2... Nf6 {[%clk 0:02:58]} 3. b3 {[%clk 0:03:03.6]} 3... b6 {[%clk 0:02:58.5]} 4.
Bb2 {[%clk 0:03:04.6]} 4... Bb7 {[%clk 0:03:00.1]} 5. d4 {[%clk 0:03:06]} 5...
e6 {[%clk 0:03:01.2]} 6. Bd3 {[%clk 0:03:06.9]} 6... Be7 {[%clk 0:03:01.1]} 7.
O-O {[%clk 0:03:08.2]} 7... O-O {[%clk 0:03:01.8]} 8. Nbd2 {[%clk 0:03:09.7]}
8... d5 {[%clk 0:03:02.5]} 9. Qe2 {[%clk 0:03:10.3]} 9... Nc6 {[%clk 0:03:01.6]}
10. a3 {[%clk 0:03:11.1]} 10... Rc8 {[%clk 0:03:01.2]} 11. Ne5 {[%clk
0:03:12.2]} 11... Nxe5 {[%clk 0:03:01.9]} 12. dxe5 {[%clk 0:03:13.4]} 12... Nd7
{[%clk 0:03:03.6]} 13. f4 {[%clk 0:03:14.3]} 13... g6 {[%clk 0:02:50.3]} 14. Rf3
{[%clk 0:03:06.1]} 14... f5 {[%clk 0:02:51.2]} 15. exf6 {[%clk 0:02:54]} 15...
Bxf6 {[%clk 0:02:52.1]} 16. Bxf6 {[%clk 0:02:55.4]} 16... Qxf6 {[%clk
0:02:52.8]} 17. Re1 {[%clk 0:02:57]} 17... Rce8 {[%clk 0:02:40]} 18. e4 {[%clk
0:02:54.1]} 18... e5 {[%clk 0:02:15.7]} 19. exd5 {[%clk 0:02:50.3]} 19... exf4
{[%clk 0:02:13.6]} 20. Qxe8 {[%clk 0:02:51]} 20... Rxe8 {[%clk 0:02:14.6]} 21.
Rxe8+ {[%clk 0:02:52.9]} 21... Kg7 {[%clk 0:02:13.6]} 22. Ne4 {[%clk 0:02:26.4]}
22... Qd4+ {[%clk 0:02:10.4]} 23. Kh1 {[%clk 0:02:26.6]} 23... Ne5 {[%clk
0:01:59]} 24. Re7+ {[%clk 0:02:25]} 24... Kf8 {[%clk 0:01:59.3]} 25. Rxb7 {[%clk
0:02:25.1]} 25... Nxd3 {[%clk 0:02:00.9]} 26. h3 {[%clk 0:02:09.8]} 26... Qxe4
{[%clk 0:01:35]} 27. Rxd3 {[%clk 0:02:09.2]} 27... Qe1+ {[%clk 0:01:31.8]} 28.
Kh2 {[%clk 0:02:09.1]} 28... Qe5 {[%clk 0:01:33.7]} 29. Rf3 {[%clk 0:02:03.7]}
29... h5 {[%clk 0:01:28]} 30. Rxa7 {[%clk 0:02:02.6]} 30... g5 {[%clk
0:01:28.9]} 31. d6 {[%clk 0:01:49.9]} 31... Qxd6 {[%clk 0:01:26.1]} 32. Rd3
{[%clk 0:01:50.6]} 32... Qb8 {[%clk 0:01:10.9]} 33. Rdd7 {[%clk 0:01:42.4]}
33... f3+ {[%clk 0:01:11.9]} 34. Kg1 {[%clk 0:01:43.3]} 34... Qe8 {[%clk
0:01:10.7]} 35. Rf7+ {[%clk 0:01:37.5]} 35... Qxf7 {[%clk 0:00:25.7]} 36. Rxf7+
{[%clk 0:01:38.7]} 36... Kxf7 {[%clk 0:00:27.6]} 37. gxf3 {[%clk 0:01:39.8]}
37... Ke6 {[%clk 0:00:29.5]} 38. Kf2 {[%clk 0:01:39.6]} 38... Kd5 {[%clk
0:00:30]} 39. Ke3 {[%clk 0:01:39.5]} 1-0

[Event "*** Titled Tuesday Blitz"]
[Site "Chess.com"]
[Date "2019.06.04"]
[Round "8"]
[White "LonesomeGeorge1"]
[Black "Spring199"]
[Result "1-0"]
[WhiteElo "2392"]
[BlackElo "2222"]
[TimeControl "180+2"]
[EndTime "14:48:53 PDT"]
[Termination "LonesomeGeorge1 won on time"]

1. e4 {[%clk 0:03:01.9]} 1... e5 {[%clk 0:03:00.7]} 2. Nf3 {[%clk 0:03:02.8]}
2... Nc6 {[%clk 0:03:00.5]} 3. Bb5 {[%clk 0:03:03.9]} 3... a6 {[%clk 0:03:00.9]}
4. Ba4 {[%clk 0:03:04.9]} 4... Nf6 {[%clk 0:03:01.5]} 5. Qe2 {[%clk 0:03:05.4]}
5... b5 {[%clk 0:02:59.6]} 6. Bb3 {[%clk 0:03:06.2]} 6... Be7 {[%clk 0:02:59.1]}
7. c3 {[%clk 0:03:06.9]} 7... O-O {[%clk 0:02:59.5]} 8. O-O {[%clk 0:03:07.7]}
8... d5 {[%clk 0:02:57.3]} 9. d3 {[%clk 0:03:08.1]} 9... d4 {[%clk 0:02:43.1]}
10. cxd4 {[%clk 0:03:02.2]} 10... Nxd4 {[%clk 0:02:42.9]} 11. Nxd4 {[%clk
0:03:03]} 11... Qxd4 {[%clk 0:02:34.8]} 12. Nd2 {[%clk 0:02:54.3]} 12... Rd8
{[%clk 0:02:25.5]} 13. Nf3 {[%clk 0:02:54.9]} 13... Qd6 {[%clk 0:02:16.4]} 14.
d4 {[%clk 0:02:53.3]} 14... Nd7 {[%clk 0:01:55]} 15. Rd1 {[%clk 0:02:28.3]}
15... exd4 {[%clk 0:01:37.8]} 16. Nxd4 {[%clk 0:02:27.4]} 16... Qf6 {[%clk
0:01:33.2]} 17. Nf5 {[%clk 0:02:14]} 17... Bb7 {[%clk 0:01:29.7]} 18. h4 {[%clk
0:02:05.4]} 18... Ne5 {[%clk 0:01:27.5]} 19. Bg5 {[%clk 0:02:03.9]} 19... Qxg5
{[%clk 0:00:38.6]} 20. hxg5 {[%clk 0:02:03]} 20... Bxg5 {[%clk 0:00:40.5]} 21.
g3 {[%clk 0:01:37.3]} 21... Bf6 {[%clk 0:00:38.1]} 22. f4 {[%clk 0:01:34.1]}
22... Ng6 {[%clk 0:00:32.9]} 23. e5 {[%clk 0:01:29.8]} 23... Be7 {[%clk
0:00:26.8]} 24. Rac1 {[%clk 0:01:26]} 24... Rxd1+ {[%clk 0:00:16.7]} 25. Qxd1
{[%clk 0:01:19.3]} 25... Bd8 {[%clk 0:00:15.4]} 26. Qd7 {[%clk 0:01:14.3]} 1-0

[Event "*** Titled Tuesday Blitz"]
[Site "Chess.com"]
[Date "2019.06.04"]
[Round "8"]
[White "Satscho"]
[Black "Rish_97"]
[Result "0-1"]
[WhiteElo "2270"]
[BlackElo "2505"]
[TimeControl "180+2"]
[EndTime "14:49:02 PDT"]
[Termination "Rish_97 won by resignation"]

1. e4 {[%clk 0:03:01.9]} 1... e5 {[%clk 0:02:56.4]} 2. Nf3 {[%clk 0:03:02.5]}
2... Nc6 {[%clk 0:02:57.3]} 3. Bb5 {[%clk 0:03:04.1]} 3... a6 {[%clk 0:02:57.3]}
4. Ba4 {[%clk 0:03:04.6]} 4... Nf6 {[%clk 0:02:57.2]} 5. O-O {[%clk 0:03:06.2]}
5... Be7 {[%clk 0:02:58.5]} 6. Re1 {[%clk 0:03:07.1]} 6... b5 {[%clk 0:02:59.2]}
7. Bb3 {[%clk 0:03:08.8]} 7... d6 {[%clk 0:03:00.8]} 8. c3 {[%clk 0:03:10.4]}
8... O-O {[%clk 0:03:01.7]} 9. h3 {[%clk 0:03:12]} 9... Nb8 {[%clk 0:03:02.6]}
10. d4 {[%clk 0:03:10.9]} 10... Nbd7 {[%clk 0:03:04.2]} 11. Nbd2 {[%clk
0:03:03.6]} 11... Bb7 {[%clk 0:03:04.7]} 12. Bc2 {[%clk 0:03:01.5]} 12... Re8
{[%clk 0:03:05.5]} 13. Nf1 {[%clk 0:03:02.4]} 13... Bf8 {[%clk 0:03:06.7]} 14.
Ng3 {[%clk 0:03:03.9]} 14... g6 {[%clk 0:03:08.2]} 15. Be3 {[%clk 0:03:03.3]}
15... exd4 {[%clk 0:03:06]} 16. Bxd4 {[%clk 0:03:05.2]} 16... c5 {[%clk
0:03:06]} 17. Be3 {[%clk 0:02:35.4]} 17... Nxe4 {[%clk 0:02:56.5]} 18. Nxe4
{[%clk 0:02:15.4]} 18... Bxe4 {[%clk 0:02:25]} 19. Bg5 {[%clk 0:02:15.9]} 19...
Bxf3 {[%clk 0:02:14.2]} 20. Rxe8 {[%clk 0:02:15.9]} 20... Qxg5 {[%clk
0:01:50.8]} 21. Rxf8+ {[%clk 0:02:06.9]} 21... Rxf8 {[%clk 0:01:52.7]} 22. Qxf3
{[%clk 0:02:08.3]} 22... Qd2 {[%clk 0:01:42.5]} 23. Qd1 {[%clk 0:01:49.3]} 23...
Qf4 {[%clk 0:01:26.7]} 24. g3 {[%clk 0:01:39.7]} 24... Qe5 {[%clk 0:01:24.6]}
25. Qd2 {[%clk 0:01:39.7]} 25... Re8 {[%clk 0:01:25]} 26. Rd1 {[%clk 0:01:40.8]}
26... Re6 {[%clk 0:01:18.8]} 27. Bb3 {[%clk 0:01:37.7]} 27... c4 {[%clk
0:01:19.2]} 28. Bc2 {[%clk 0:01:39.4]} 28... Nf6 {[%clk 0:01:16.4]} 29. b3
{[%clk 0:01:39.5]} 29... d5 {[%clk 0:01:14.3]} 30. bxc4 {[%clk 0:01:30]} 30...
dxc4 {[%clk 0:01:15.4]} 31. a4 {[%clk 0:01:28.1]} 31... Kg7 {[%clk 0:01:15]} 32.
axb5 {[%clk 0:01:18.2]} 32... axb5 {[%clk 0:01:16.9]} 33. h4 {[%clk 0:01:15.5]}
33... Re7 {[%clk 0:01:16.3]} 34. Qd6 {[%clk 0:01:12.3]} 34... Qxd6 {[%clk
0:01:15.9]} 35. Rxd6 {[%clk 0:01:14.2]} 35... Re2 {[%clk 0:01:11.3]} 36. Bd1
{[%clk 0:01:15.1]} 36... Re1+ {[%clk 0:01:12.4]} 37. Kg2 {[%clk 0:01:16.1]}
37... Ne4 {[%clk 0:01:13.8]} 38. Rd7 {[%clk 0:01:14.3]} 38... Nxc3 {[%clk
0:01:13.7]} 39. Bg4 {[%clk 0:01:15.8]} 39... h5 {[%clk 0:01:12.4]} 40. Bf3
{[%clk 0:01:12.8]} 40... b4 {[%clk 0:01:13.6]} 41. Rc7 {[%clk 0:01:13.6]} 41...
b3 {[%clk 0:01:13.1]} 42. Rxc4 {[%clk 0:01:14.5]} 42... b2 {[%clk 0:01:14.4]}
0-1

[Event "*** Titled Tuesday Blitz"]
[Site "Chess.com"]
[Date "2019.06.04"]
[Round "8"]
[White "Joseph_Truelson"]
[Black "fm_magua"]
[Result "0-1"]
[WhiteElo "2283"]
[BlackElo "2489"]
[TimeControl "180+2"]
[EndTime "14:49:05 PDT"]
[Termination "fm_magua won by resignation"]

1. d4 {[%clk 0:03:01.9]} 1... Nf6 {[%clk 0:03:00.7]} 2. Nc3 {[%clk 0:03:02.6]}
2... g6 {[%clk 0:03:02.2]} 3. e4 {[%clk 0:03:03.1]} 3... d6 {[%clk 0:03:03.1]}
4. Bf4 {[%clk 0:03:03.8]} 4... Bg7 {[%clk 0:03:04.6]} 5. Qd2 {[%clk 0:03:04.7]}
5... c5 {[%clk 0:03:02.9]} 6. dxc5 {[%clk 0:02:49]} 6... dxc5 {[%clk 0:03:03.7]}
7. Qxd8+ {[%clk 0:02:47.8]} 7... Kxd8 {[%clk 0:03:04.7]} 8. O-O-O+ {[%clk
0:02:49.7]} 8... Bd7 {[%clk 0:03:03.4]} 9. Nf3 {[%clk 0:02:47.5]} 9... Nh5
{[%clk 0:03:00.5]} 10. Be3 {[%clk 0:02:42.5]} 10... b6 {[%clk 0:02:57.1]} 11.
Bb5 {[%clk 0:02:30.2]} 11... Bxc3 {[%clk 0:02:54.5]} 12. bxc3 {[%clk 0:02:25]}
12... Kc7 {[%clk 0:02:53.5]} 13. Bc4 {[%clk 0:02:18.5]} 13... f6 {[%clk
0:02:46.6]} 14. e5 {[%clk 0:01:58.1]} 14... Bc6 {[%clk 0:02:44.8]} 15. exf6
{[%clk 0:01:40.3]} 15... Bxf3 {[%clk 0:02:37]} 16. gxf3 {[%clk 0:01:37.2]} 16...
exf6 {[%clk 0:02:38.3]} 17. Rd5 {[%clk 0:01:27.4]} 17... Nc6 {[%clk 0:02:37.7]}
18. Rhd1 {[%clk 0:01:19.9]} 18... Rad8 {[%clk 0:02:38.6]} 19. Rxd8 {[%clk
0:01:09]} 19... Nxd8 {[%clk 0:02:39.3]} 20. Bh6 {[%clk 0:00:58.4]} 20... Nc6
{[%clk 0:02:31.5]} 21. Be6 {[%clk 0:00:51.1]} 21... Re8 {[%clk 0:02:18.6]} 22.
Bg4 {[%clk 0:00:43.8]} 22... Ne5 {[%clk 0:02:06.7]} 23. Bxh5 {[%clk 0:00:28.1]}
23... gxh5 {[%clk 0:02:08.6]} 24. Bg7 {[%clk 0:00:28.2]} 24... Nxf3 {[%clk
0:02:03.2]} 25. Bxf6 {[%clk 0:00:28.8]} 25... Re2 {[%clk 0:02:04.6]} 26. Rd3
{[%clk 0:00:24.6]} 26... Rxf2 {[%clk 0:02:04]} 27. Kd1 {[%clk 0:00:19.2]} 27...
Nxh2 {[%clk 0:02:02.5]} 28. Bh4 {[%clk 0:00:19.5]} 28... Rg2 {[%clk 0:01:58.6]}
29. Ke1 {[%clk 0:00:18.7]} 29... Ng4 {[%clk 0:01:55]} 30. Kf1 {[%clk 0:00:18.1]}
30... Rxc2 {[%clk 0:01:54.8]} 31. Bg3+ {[%clk 0:00:19]} 31... Kc6 {[%clk
0:01:55.3]} 32. Rd6+ {[%clk 0:00:20.1]} 32... Kb5 {[%clk 0:01:56.4]} 33. Rd7
{[%clk 0:00:21.2]} 33... Rxc3 {[%clk 0:01:55.5]} 34. Be1 {[%clk 0:00:21.8]}
34... Rf3+ {[%clk 0:01:52.7]} 35. Kg2 {[%clk 0:00:19.8]} 35... Re3 {[%clk
0:01:53.2]} 36. Kf1 {[%clk 0:00:20.5]} 36... a5 {[%clk 0:01:49.8]} 37. Rxh7
{[%clk 0:00:21.2]} 37... Ra3 {[%clk 0:01:43.7]} 38. Rxh5 {[%clk 0:00:20]} 38...
Rxa2 {[%clk 0:01:44.4]} 39. Rg5 {[%clk 0:00:21.3]} 39... Ne3+ {[%clk 0:01:45.5]}
40. Kg1 {[%clk 0:00:23]} 40... Ra1 {[%clk 0:01:41.1]} 41. Kf2 {[%clk 0:00:23.4]}
41... Nc2 {[%clk 0:01:42.2]} 42. Bc3 {[%clk 0:00:23]} 42... Ra2 {[%clk 0:01:43]}
43. Kf3 {[%clk 0:00:21.8]} 43... Ra3 {[%clk 0:01:42.6]} 0-1

[Event "*** Titled Tuesday Blitz"]
[Site "Chess.com"]
[Date "2019.06.04"]
[Round "8"]
[White "Haykos"]
[Black "slowdumbb"]
[Result "0-1"]
[WhiteElo "2528"]
[BlackElo "2463"]
[TimeControl "180+2"]
[EndTime "14:49:05 PDT"]
[Termination "slowdumbb won by resignation"]

1. e4 {[%clk 0:02:58.7]} 1... c5 {[%clk 0:03:01.2]} 2. Nf3 {[%clk 0:02:59.7]}
2... Nc6 {[%clk 0:02:59.3]} 3. Bb5 {[%clk 0:03:01]} 3... g6 {[%clk 0:03:00.2]}
4. Bxc6 {[%clk 0:03:02]} 4... bxc6 {[%clk 0:03:01.9]} 5. O-O {[%clk 0:03:02.8]}
5... Bg7 {[%clk 0:03:03.1]} 6. Re1 {[%clk 0:03:03.2]} 6... e5 {[%clk 0:03:03.7]}
7. Nc3 {[%clk 0:03:02.1]} 7... Ne7 {[%clk 0:03:04.1]} 8. b3 {[%clk 0:03:03.6]}
8... O-O {[%clk 0:03:04.8]} 9. Bb2 {[%clk 0:03:05]} 9... d6 {[%clk 0:03:05.4]}
10. h3 {[%clk 0:03:05.6]} 10... f5 {[%clk 0:03:06.7]} 11. d3 {[%clk 0:03:03.4]}
11... f4 {[%clk 0:03:02.5]} 12. Na4 {[%clk 0:03:04]} 12... Bf6 {[%clk
0:02:57.7]} 13. c3 {[%clk 0:03:04.3]} 13... g5 {[%clk 0:02:56.7]} 14. Nh2 {[%clk
0:03:01.5]} 14... Ng6 {[%clk 0:02:56.4]} 15. d4 {[%clk 0:03:01.4]} 15... cxd4
{[%clk 0:02:42.9]} 16. cxd4 {[%clk 0:03:03.3]} 16... Qe7 {[%clk 0:02:39.4]} 17.
Rc1 {[%clk 0:03:00.8]} 17... Nh4 {[%clk 0:02:25.4]} 18. dxe5 {[%clk 0:02:47.2]}
18... Bxe5 {[%clk 0:02:19.9]} 19. Bxe5 {[%clk 0:02:47.5]} 19... Qxe5 {[%clk
0:02:15]} 20. Nf3 {[%clk 0:01:47.6]} 20... Nxf3+ {[%clk 0:02:08.6]} 21. Qxf3
{[%clk 0:01:49.5]} 21... g4 {[%clk 0:02:06]} 22. hxg4 {[%clk 0:01:47.5]} 22...
Qg5 {[%clk 0:02:05.4]} 23. Rxc6 {[%clk 0:01:00.1]} 23... Bxg4 {[%clk 0:02:05.1]}
24. Qc3 {[%clk 0:01:00.4]} 24... f3 {[%clk 0:01:50.5]} 25. g3 {[%clk 0:00:43.5]}
25... Rf6 {[%clk 0:01:44.7]} 26. Re3 {[%clk 0:00:15.9]} 26... Raf8 {[%clk
0:01:36.4]} 27. Kf1 {[%clk 0:00:13.5]} 27... Qh5 {[%clk 0:01:31.7]} 28. Ke1
{[%clk 0:00:12.2]} 28... Qh2 {[%clk 0:01:29.1]} 29. Qc4+ {[%clk 0:00:08.2]}
29... Be6 {[%clk 0:01:28.4]} 30. Qf1 {[%clk 0:00:07.9]} 30... Bh3 {[%clk
0:01:25.8]} 31. Qc4+ {[%clk 0:00:08.3]} 31... Kh8 {[%clk 0:01:27]} 32. Nb2
{[%clk 0:00:08.9]} 32... Qg1+ {[%clk 0:01:27.7]} 33. Kd2 {[%clk 0:00:09.4]}
33... Qxf2+ {[%clk 0:01:28.9]} 34. Kd3 {[%clk 0:00:10.2]} 34... Bf1+ {[%clk
0:01:29.1]} 35. Kd4 {[%clk 0:00:10.5]} 35... Bxc4 {[%clk 0:01:29.8]} 36. Nxc4
{[%clk 0:00:12.4]} 36... Qxg3 {[%clk 0:01:29.3]} 0-1